bitfinex/quotes_ETHUSD_20250129
["timestamp","ask_amount","ask_price","bid_price","bid_amount"]
[1738192625968,0.1611382,3146.0,3145.4,3.17921]
[1738192626292,3.3397882,3146.0,3145.4,3.17921]
[1738192627575,3.3397882,3146.0,3145.2,4.00871]
[1738192627576,0.1611382,3146.0,3145.2,0.8293]
[1738192627750,0.1611382,3146.0,3145.7,3.17887]
[1738192628389,0.1611382,3146.0,3145.5,6.3582]
[1738192628609,0.1611382,3146.0,3145.3,3.17927]
[1738192628610,3.67379902,3146.0,3145.3,3.17927]
[1738192628917,3.17874,3145.9,3145.3,3.17927]
[1738192629204,3.17876,3145.9,3145.3,3.17927]
[1738192629698,3.67380902,3146.0,3145.4,3.17921]
[1738192631195,0.49509902,3146.0,3145.5,3.17913]
[1738192631413,0.1611382,3146.0,3145.5,3.17913]
[1738192631605,0.1611382,3146.0,3145.3,3.17927]
[1738192631811,3.3398482,3146.0,3145.4,3.17922]
[1738192632216,3.3398482,3146.0,3145.3,3.17927]
[1738192632587,3.3398482,3146.0,3145.4,3.17921]
[1738192632792,3.99167902,3146.0,3145.5,3.17911]
[1738192633189,0.1611382,3146.0,3145.8,3.17877]
[1738192633553,0.1611382,3146.0,3145.8,3.99937]
[1738192634188,0.1611382,3146.0,3145.9,3.93494]
[1738192634388,0.3322042,3147.8,3147.0,0.7562]
[1738192634595,3.17702,3147.6,3147.0,0.7562]
[1738192634791,3.45743,3148.0,3147.1,3.17749]
[1738192635177,3.45743,3148.0,3147.0,0.7562]
[1738192635178,0.663387,3148.0,3147.0,0.7562]
[1738192635293,0.663387,3148.0,3146.6,3.17798]
[1738192635294,0.84305438,3148.4,3147.9,3.17671]
[1738192635500,0.84305438,3148.4,3147.7,0.7749]
[1738192635709,0.84305438,3148.4,3148.3,3.17631]
[1738192636018,0.84305438,3148.4,3148.3,3.95121]
[1738192636205,0.005,3148.4,3148.3,3.95121]
[1738192636405,0.005,3148.4,3148.3,0.7749]
[1738192636605,0.005,3148.4,3147.9,3.17668]
[1738192636606,0.005,3148.4,3147.9,3.95158]
[1738192636810,0.005,3148.4,3148.0,3.17659]
[1738192637652,3.17631,3148.3,3147.7,3.1769]
[1738192637795,3.17666,3148.0,3147.3,0.8269]
[1738192638142,3.17675,3147.9,3147.3,0.8269]
[1738192638302,0.2808,3148.1,3147.3,0.8269]
[1738192638689,3.45732,3148.1,3147.3,4.00419]
[1738192638891,3.45732,3148.1,3147.4,3.17722]
[1738192639130,0.345732,3148.0,3147.4,3.17722]
[1738192639487,0.005,3148.4,3147.8,3.17672]
[1738192639692,0.005,3148.4,3147.6,3.177]
[1738192639901,0.005,3148.4,3147.8,3.17677]
[1738192640105,3.18122,3148.4,3147.6,3.17694]
[1738192640329,0.346202,3148.3,3147.3,0.8269]
[1738192640628,0.005,3148.4,3148.2,3.17641]
[1738192641124,0.005,3148.4,3148.1,0.7952]
[1738192641325,0.005,3148.4,3148.2,3.17641]
[1738192641514,0.005,3148.4,3148.3,3.17631]
[1738192642092,0.005,3148.4,3148.2,3.17641]
[1738192642308,0.005,3148.4,3148.1,3.97169]
[1738192642494,0.005,3148.4,3148.1,0.7952]
[1738192643018,0.005,3148.4,3148.1,3.97167]
[1738192644503,0.005,3148.4,3148.2,3.17641]
[1738192644930,0.005,3148.4,3148.3,3.17631]
[1738192645994,0.005,3148.4,3148.3,3.891102]
[1738192646231,0.005,3148.4,3148.3,5.210002]
[1738192646951,0.005,3148.4,3148.3,8.225002]
[1738192647694,0.1611382,3149.1,3149.0,3.17561]
[1738192647995,0.1611382,3149.1,3149.0,6.93251]
[1738192648194,0.1611382,3149.1,3149.0,8.31679781]
[1738192648642,0.1611382,3149.1,3149.0,3.93251]
[1738192649614,0.1611382,3149.1,3148.8,3.17572]
[1738192649816,0.1611382,3149.1,3149.0,3.17561]
[1738192650020,0.1611382,3149.1,3148.9,3.17569]
[1738192650245,0.1611382,3149.1,3148.4,3.92903]
[1738192650246,3.3367282,3149.1,3148.4,3.92903]
[1738192650395,3.17562,3149.0,3148.4,3.92903]
[1738192650729,3.67040102,3149.1,3148.4,3.92903]
[1738192650934,3.17567,3149.0,3148.5,3.17611]
[1738192651235,0.49481102,3149.1,3148.5,3.17611]
[1738192651398,3.67033102,3149.1,3148.5,3.17611]
[1738192651599,0.1611382,3149.1,3148.5,3.17611]
[1738192651823,0.1611382,3149.1,3148.6,3.176]
[1738192652224,0.1611382,3149.1,3148.4,3.92904]
[1738192652395,0.1611382,3149.1,3148.6,3.17594]
[1738192652798,0.1611382,3149.1,3148.7,3.17589]
[1738192653323,0.1611382,3149.1,3148.7,3.1759]
[1738192653520,0.1611382,3149.1,3148.8,3.17581]
[1738192653721,0.1611382,3149.1,3149.0,3.17561]
[1738192654303,3.3366882,3149.1,3148.5,3.1761]
[1738192654546,3.3366882,3149.1,3148.8,3.17576]
[1738192654547,0.1611382,3149.1,3148.8,3.17576]
[1738192654713,0.1611382,3149.1,3148.6,3.17598]
[1738192655047,0.1611382,3149.1,3148.7,3.1759]
[1738192655336,0.1611382,3149.1,3148.8,3.17576]
[1738192655841,0.1611382,3149.1,3149.0,4.00081]
[1738192656145,0.1611382,3149.1,3149.0,8.40950381]
[1738192656647,0.1611382,3149.1,3149.0,8.96700381]
[1738192656815,0.1611382,3149.1,3149.0,8.97450381]
[1738192657542,0.2808,3150.5,3149.8,3.1747]
[1738192657781,0.2808,3150.5,3150.0,3.17453]
[1738192658107,0.2808,3151.2,3150.4,3.17411]
[1738192658306,0.2808,3151.2,3150.0,0.317453]
[1738192658307,0.2808,3151.2,3150.2,3.0]
[1738192658508,0.2808,3151.2,3150.2,6.17432]
[1738192658734,3.17357,3151.1,3150.4,3.17412]
[1738192658923,3.17357,3151.1,3150.5,3.17408]
[1738192658924,3.836342,3151.1,3150.5,3.17408]
[1738192659247,3.17359,3151.0,3150.3,3.17425]
[1738192659406,3.17359,3151.0,3150.3,3.1743]
[1738192659609,0.662772,3151.1,3149.9,3.99107]
[1738192659610,3.17406,3150.6,3149.9,3.99107]
[1738192659813,3.17437,3150.3,3149.7,3.79906386]
[1738192660146,3.17437,3150.3,3149.6,0.8304]
[1738192660147,3.1743,3150.3,3149.6,3.1749]
[1738192660351,3.1744,3150.2,3149.4,3.17518]
[1738192660653,3.17466,3150.0,3149.2,3.9851]
[1738192660854,3.1748,3149.9,3149.2,3.9851]
[1738192661581,3.17495,3149.7,3149.0,3.1756]
[1738192661869,3.17495,3149.7,3148.8,3.98669]
[1738192661870,3.17512,3149.5,3148.9,3.17569]
[1738192662163,0.2808,3150.0,3148.9,3.17569]
[1738192662164,3.17507,3149.6,3148.9,3.17569]
[1738192662373,3.17507,3149.6,3149.0,3.1756]
[1738192662579,3.810077,3149.6,3149.0,3.1756]
[1738192662743,0.635007,3149.6,3149.0,3.1756]
[1738192663092,0.2808,3149.6,3148.4,0.64710685]
[1738192663247,3.17512,3149.5,3148.8,3.17574]
[1738192663441,3.17512,3149.5,3148.9,3.1757]
[1738192663648,3.4559,3149.6,3149.0,3.17556]
[1738192663989,3.18158,3150.6,3149.3,3.17526]
[1738192663990,0.2808,3150.0,3149.3,3.17526]
[1738192664128,3.45542,3150.0,3149.3,3.17526]
[1738192664326,3.45542,3150.0,3149.4,3.17518]
[1738192664568,3.17414,3150.5,3149.6,3.17493]
[1738192664773,3.45501,3150.4,3149.8,3.17478]
[1738192665071,0.2808,3150.4,3149.8,3.17478]
[1738192665232,3.17431,3150.3,3149.6,3.17493]
[1738192665568,3.837235,3150.3,3149.5,0.7731]
[1738192665740,3.17457,3150.1,3149.4,3.17513]
[1738192665934,3.17462,3150.0,3149.4,3.17513]
[1738192666134,3.17502,3149.6,3149.0,3.17557]
[1738192666577,3.17502,3149.6,3148.8,3.17577]
[1738192666869,3.17522,3149.4,3148.8,3.17577]
[1738192667069,3.17522,3149.4,3148.5,3.17606]
[1738192667070,0.345582,3149.5,3148.5,3.17606]
[1738192667232,0.2808,3149.7,3148.5,3.17606]
[1738192667432,3.17556,3149.1,3148.5,3.17606]
[1738192667655,3.17556,3149.1,3148.1,0.0075]
[1738192667656,3.17579,3148.9,3148.2,3.17641]
[1738192667860,3.17582,3148.8,3148.2,3.17641]
[1738192668055,3.17579,3148.9,3148.3,3.17623]
[1738192668368,3.810871,3148.9,3148.2,3.17641]
[1738192668673,3.17584,3148.8,3148.1,3.97794]
[1738192668872,3.17592,3148.7,3148.1,3.97794]
[1738192669274,3.17592,3148.7,3147.8,3.17678]
[1738192669459,3.17605,3148.6,3148.0,3.17652]
[1738192670244,3.17605,3148.6,3147.8,3.17678]
[1738192670245,3.17619,3148.5,3147.8,3.17678]
[1738192670439,3.17627,3148.4,3147.8,3.17678]
[1738192670800,3.17619,3148.5,3147.7,0.8015]
[1738192671097,3.17622,3148.4,3147.7,3.97835]
[1738192671439,0.2808,3148.7,3148.0,3.17659]
[1738192671644,3.17614,3148.5,3147.8,3.17674]
[1738192672341,3.17633,3148.3,3147.7,0.8015]
[1738192672541,3.17633,3148.3,3147.6,3.17701]
[1738192672742,3.17643,3148.2,3147.6,3.17701]
[1738192673252,3.17662,3148.0,3147.4,3.94971]
[1738192673464,3.17614,3148.5,3147.4,3.94971]
[1738192673777,3.17661,3148.1,3147.4,3.17721]
[1738192673978,3.17661,3148.1,3147.0,0.7528]
[1738192674179,0.626458,3148.7,3147.2,3.17739]
[1738192674380,3.17609,3148.6,3147.8,3.17672]
[1738192674881,3.17609,3148.6,3147.9,3.17672]
[1738192675063,3.8739388,3148.6,3147.9,3.17672]
[1738192675284,3.8739388,3148.6,3148.0,3.17658]
[1738192675491,3.17609,3148.6,3148.0,3.17658]
[1738192675891,0.2808,3148.7,3147.6,3.17699]
[1738192676097,3.17618,3148.5,3147.8,3.17679]
[1738192676464,3.17618,3148.5,3147.6,3.17701]
[1738192676465,3.1765,3148.2,3147.6,3.17701]
[1738192677212,3.45742,3148.0,3147.4,3.17722]
[1738192677692,3.45742,3148.0,3147.2,3.17742]
[1738192677693,3.17676,3147.9,3147.3,3.17729]
[1738192678260,0.2808,3148.0,3147.4,3.17721]
[1738192678458,3.2808,3148.3,3147.6,3.17701]
[1738192678660,7.102874,3148.3,3147.6,3.17701]
[1738192678865,3.17643,3148.2,3147.6,3.17701]
[1738192679061,3.17643,3148.2,3147.6,3.17702]
[1738192681286,3.176,3148.7,3148.0,3.17659]
[1738192681456,3.4568,3148.7,3147.8,3.17678]
[1738192681656,3.7744,3148.7,3147.9,3.17665]
[1738192681892,3.17614,3148.5,3147.9,3.17665]
[1738192682594,6.95038,3148.7,3148.0,3.17661]
[1738192682977,3.77438,3148.7,3148.0,3.17661]
[1738192683181,3.17623,3148.4,3147.4,3.17714]
[1738192683496,3.17642,3148.2,3147.6,3.17694]
[1738192683682,3.17639,3148.3,3147.6,3.17694]
[1738192683878,3.17641,3148.2,3147.6,3.17694]
[1738192685997,3.17641,3148.2,3147.3,0.7807]
[1738192685998,0.377438,3148.6,3147.3,0.7807]
[1738192686296,3.17666,3148.0,3147.5,3.17709]
[1738192686494,3.17652,3148.1,3147.5,3.17709]
[1738192686860,3.17675,3147.9,3147.3,3.95802]
[1738192687059,0.2808,3148.0,3147.4,3.17714]
[1738192687261,3.45713,3148.3,3147.8,3.17681]
[1738192687563,3.45713,3148.3,3146.8,0.55]
[1738192687564,3.17672,3147.9,3147.3,0.7724]
[1738192687772,3.17692,3147.7,3147.2,3.17734]
[1738192687982,3.45807,3147.4,3146.8,3.17779]
[1738192688297,3.45807,3147.4,3146.6,0.7724]
[1738192688298,3.803877,3147.4,3146.7,3.17787]
[1738192688596,3.17736,3147.3,3146.7,3.17787]
[1738192688767,0.2808,3147.4,3146.8,3.17775]
[1738192689096,3.4581,3147.4,3146.7,3.17787]
[1738192689306,3.4581,3147.4,3146.7,3.17784]
[1738192689307,0.2808,3147.4,3146.7,3.17784]
[1738192689666,3.17749,3147.2,3146.6,0.7724]
[1738192689868,3.17739,3147.3,3146.6,3.95042]
[1738192690194,0.626594,3147.4,3146.6,0.7724]
[1738192690364,0.2808,3148.2,3146.6,0.7724]
[1738192690570,3.17703,3147.6,3147.0,3.1776]
[1738192691199,3.17724,3147.4,3146.7,0.29592525]
[1738192691402,3.17748,3147.2,3146.7,0.29592525]
[1738192691695,0.317724,3147.3,3146.7,0.29592525]
[1738192691696,3.45856,3146.9,3146.7,0.29592525]
[1738192691895,0.2808,3146.9,3146.7,0.29592525]
[1738192692281,3.45858,3146.9,3146.7,0.29592525]
[1738192692453,0.2808,3146.9,3146.7,0.29592525]
[1738192693296,0.2808,3146.9,3146.4,3.17821]
[1738192693707,3.45853,3146.9,3146.4,3.17821]
[1738192694011,3.17745,3147.2,3146.5,0.317821]
[1738192694215,3.17789,3146.8,3146.2,3.17839]
[1738192695205,3.17789,3146.8,3146.3,3.1783]
[1738192695361,3.45819,3147.3,3146.5,3.17813]
[1738192695692,3.17734,3147.3,3146.7,3.96936]
[1738192695897,3.17734,3147.3,3146.7,3.17786]
[1738192696265,3.17734,3147.3,3146.5,3.1781]
[1738192696463,3.17734,3147.3,3146.4,0.7915]
[1738192696464,3.17773,3146.9,3146.2,3.17839]
[1738192696664,3.17773,3146.9,3146.3,3.17831]
[1738192697073,3.17773,3146.9,3146.2,3.17839]
[1738192697074,3.17805,3146.6,3146.1,0.8161]
[1738192697278,3.17829,3146.4,3145.7,3.17886]
[1738192697476,3.17805,3146.6,3145.5,0.7611]
[1738192697676,3.17805,3146.6,3145.7,3.17894]
[1738192697917,3.17839,3146.3,3145.5,7.11927]
[1738192698072,3.45867,3146.8,3145.6,3.17902]
[1738192698267,0.2808,3146.8,3145.5,0.7611]
[1738192698473,0.2808,3146.8,3145.7,3.17889]
[1738192698672,3.17809,3146.6,3145.8,3.17882]
[1738192698980,0.2808,3146.8,3145.8,0.635771]
[1738192699299,0.0075,3147.8,3145.5,0.7611]
[1738192699300,0.2808,3147.2,3146.6,3.178]
[1738192699481,0.2808,3147.2,3146.5,3.1781]
[1738192699687,3.45825,3147.2,3146.2,3.96227]
[1738192699876,3.17771,3147.0,3146.4,3.17822]
[1738192700208,3.45827,3147.2,3146.5,3.17805]
[1738192700715,3.45827,3147.2,3146.6,3.17802]
[1738192701066,3.45827,3147.2,3146.3,3.17829]
[1738192701265,3.45827,3147.2,3146.5,3.17811]
[1738192703520,6.63579,3147.2,3146.5,3.17811]
[1738192703727,3.45827,3147.2,3146.5,6.35617]
[1738192703884,3.45827,3147.2,3146.5,3.813677]
[1738192704233,3.17763,3147.0,3146.5,3.17806]
[1738192704373,3.45827,3147.2,3146.5,3.17806]
[1738192705221,3.17754,3147.1,3146.5,3.17806]
[1738192706629,0.2808,3147.2,3146.7,3.17791]
[1738192706780,3.45824,3147.2,3146.5,3.17806]
[1738192707275,3.45824,3147.2,3146.5,6.35613]
[1738192707502,3.45824,3147.2,3146.5,6.991743]
[1738192707815,3.17754,3147.1,3146.5,3.813673]
[1738192708108,3.17754,3147.1,3146.6,3.17803]
[1738192708287,0.2808,3147.2,3146.6,3.17803]
[1738192708488,3.45825,3147.2,3146.6,3.17803]
[1738192708690,3.0,3147.4,3146.8,3.1778]
[1738192709012,3.17734,3147.3,3146.7,3.17786]
[1738192709578,3.17734,3147.3,3146.8,3.1778]
[1738192709805,3.0,3147.4,3146.8,3.1778]
[1738192710405,3.0,3147.4,3146.9,3.17765]
[1738192710720,3.17715,3147.5,3146.9,4.64159]
[1738192710918,3.17671,3148.0,3147.2,3.17738]
[1738192711237,3.17629,3148.4,3147.8,3.17674]
[1738192711374,0.2808,3148.5,3148.0,3.17653]
[1738192711576,3.17597,3148.7,3148.2,3.17639]
[1738192711801,3.17597,3148.7,3148.0,3.17653]
[1738192711991,3.17597,3148.7,3148.1,3.17651]
[1738192712793,0.2808,3148.8,3148.2,3.17636]
[1738192713116,0.2808,3149.2,3148.3,0.7526]
[1738192713420,3.17534,3149.3,3148.7,3.17583]
[1738192713585,0.2808,3149.6,3149.1,3.17549]
[1738192713913,0.2808,3149.6,3148.7,3.17588]
[1738192713914,3.1751,3149.5,3148.7,3.17588]
[1738192714119,3.17532,3149.3,3148.7,3.17588]
[1738192715023,0.34559,3149.4,3148.5,3.17607]
[1738192715330,3.52088,3149.4,3148.7,3.17589]
[1738192715490,3.17529,3149.4,3148.7,3.17589]
[1738192716321,3.17532,3149.3,3148.7,3.17589]
[1738192716825,3.17544,3149.2,3148.5,3.17607]
[1738192717390,0.2808,3148.9,3148.1,3.17646]
[1738192717589,3.17588,3148.8,3148.1,3.89105]
[1738192717803,3.17588,3148.8,3148.2,3.17641]
[1738192718217,3.17603,3148.6,3148.0,3.96944]
[1738192718413,0.2808,3148.9,3148.0,0.7929]
[1738192718804,3.45655,3148.9,3148.2,3.17639]
[1738192719024,3.17609,3148.6,3148.0,3.1766]
[1738192719224,3.17609,3148.6,3147.8,3.17675]
[1738192719629,3.17617,3148.5,3147.8,3.17675]
[1738192719817,3.17609,3148.6,3147.8,3.17675]
[1738192720017,3.17638,3148.3,3147.6,0.7522]
[1738192720222,3.17618,3148.5,3147.8,3.17674]
[1738192720836,3.17618,3148.5,3147.9,3.1767]
[1738192721631,0.2808,3148.9,3148.4,3.17613]
[1738192721834,3.0,3149.4,3148.6,3.17601]
[1738192721840,3.17533,3149.3,3148.6,3.17601]
[1738192722133,3.17512,3149.5,3148.8,3.17573]
[1738192722637,3.17527,3149.4,3148.8,3.17573]
[1738192722937,3.17539,3149.3,3148.6,3.17601]
[1738192723117,3.838389,3149.4,3148.6,3.17601]
[1738192723318,3.17542,3149.2,3148.6,3.17601]
[1738192723903,3.838389,3149.4,3148.6,3.17601]
[1738192724103,3.17527,3149.4,3148.8,3.17578]
[1738192724432,3.17527,3149.4,3148.6,3.17601]
[1738192724433,0.2808,3149.6,3149.1,3.17549]
[1738192724620,0.2808,3149.6,3149.2,3.1754]
[1738192724821,0.2808,3149.9,3149.5,3.1751]
[1738192725135,3.17477,3149.9,3149.3,3.17529]
[1738192725389,0.63494,3149.9,3148.9,0.8288]
[1738192725542,0.2808,3149.6,3148.9,3.17564]
[1738192726346,3.17512,3149.5,3148.9,3.17564]
[1738192727339,0.2808,3149.6,3148.9,3.17564]
[1738192727634,3.4558,3149.6,3149.0,3.1756]
[1738192728603,3.4558,3149.6,3148.9,3.17564]
[1738192728835,3.17523,3149.4,3148.6,4.00882]
[1738192729041,3.17535,3149.3,3148.6,4.00882]
[1738192729257,3.17523,3149.4,3148.5,0.62448554]
[1738192729559,3.17537,3149.3,3148.6,3.17601]
[1738192729712,3.17542,3149.2,3148.6,3.17601]
[1738192730844,3.17523,3149.4,3148.7,3.17583]
[1738192731142,3.17557,3149.1,3148.5,0.62448554]
[1738192731361,0.62638,3149.6,3148.3,0.7692]
[1738192731362,3.45657,3148.9,3148.3,0.7692]
[1738192731522,3.45657,3148.9,3148.3,3.94549]
[1738192731730,3.17598,3148.7,3148.1,3.17645]
[1738192732043,3.17598,3148.7,3147.9,3.96954]
[1738192732233,3.17598,3148.7,3147.9,3.17664]
[1738192732428,3.17618,3148.5,3148.0,3.17661]
[1738192733522,3.5562237,3148.7,3148.1,3.17644]
[1738192733745,0.2808,3148.9,3148.4,3.17621]
[1738192733945,3.45653,3148.9,3148.3,0.8073]
[1738192734130,3.17595,3148.7,3148.1,3.17645]
[1738192734556,3.17603,3148.6,3148.1,3.17645]
[1738192734933,3.45656,3148.9,3148.1,3.17645]
[1738192735173,3.17609,3148.6,3147.9,3.17668]
[1738192735828,3.521536,3148.8,3148.1,3.17651]
[1738192736028,3.521536,3148.8,3148.2,3.17641]
[1738192736233,3.17588,3148.8,3148.2,3.17641]
[1738192736822,6.45651,3148.9,3148.3,3.1763]
[1738192737255,3.17548,3149.2,3148.5,3.17603]
[1738192737455,3.45628,3149.2,3148.6,3.17592]
[1738192738285,3.17522,3149.4,3148.9,3.17571]
[1738192738557,3.17483,3149.8,3149.0,0.317571]
[1738192738732,3.17502,3149.6,3148.7,3.17587]
[1738192738937,3.17539,3149.3,3148.7,3.17587]
[1738192739138,3.17555,3149.1,3148.6,0.62923705]
[1738192739333,3.17555,3149.1,3148.6,1.08843976]
[1738192739564,3.17555,3149.1,3148.6,0.45920271]
[1738192740083,3.17532,3149.3,3148.6,0.45920271]
[1738192740084,3.17547,3149.2,3148.6,0.45920271]
[1738192740413,3.17547,3149.2,3148.6,3.63515271]
[1738192740540,0.2808,3149.3,3148.5,0.7867]
[1738192740887,6.35152,3148.9,3148.3,3.17627]
[1738192741085,3.17572,3148.9,3148.1,3.96019]
[1738192741242,0.2808,3149.2,3148.1,1.43092615]
[1738192741446,3.17602,3148.6,3148.1,0.64722615]
[1738192741829,3.17611,3148.5,3148.0,3.17655]
[1738192742976,3.17611,3148.5,3147.8,3.17678]
[1738192743182,3.17611,3148.5,3148.0,0.63294598]
[1738192743343,3.17638,3148.3,3148.0,0.63294598]
[1738192743731,0.635249,3148.3,3147.4,3.9462]
[1738192743958,0.2808,3148.6,3147.4,3.9462]
[1738192743959,6.17611,3148.5,3147.4,3.9462]
[1738192744201,3.17621,3148.4,3147.6,3.17702]
[1738192744374,3.17623,3148.4,3147.9,3.17663]
[1738192744678,3.17646,3148.2,3147.6,3.17699]
[1738192744882,3.17646,3148.2,3147.5,3.17705]
[1738192745064,3.17646,3148.2,3147.4,0.769]
[1738192745065,3.1767,3148.0,3147.4,0.769]
[1738192745460,3.17645,3148.2,3147.4,0.769]
[1738192745461,3.17652,3148.1,3147.4,0.769]
[1738192745779,3.17645,3148.2,3147.4,0.769]
[1738192745780,0.2808,3148.6,3147.4,0.769]
[1738192745982,3.17667,3148.0,3147.4,0.769]
[1738192746166,3.17667,3148.0,3147.4,3.9462]
[1738192746372,3.17667,3148.0,3147.4,1.481344]
[1738192746553,3.17667,3148.0,3147.5,3.17711]
[1738192746885,3.17646,3148.2,3147.5,3.17711]
[1738192747100,3.45684,3148.6,3147.5,3.17712]
[1738192747393,3.17612,3148.5,3147.9,3.1767]
[1738192747538,3.17612,3148.5,3148.0,3.17661]
[1738192748116,3.17652,3148.1,3147.6,3.98509]
[1738192748898,3.17663,3148.0,3147.6,0.8081]
[1738192749100,3.17692,3147.7,3147.3,0.7717]
[1738192749701,3.17692,3147.7,3147.1,3.17752]
[1738192749899,3.17692,3147.7,3147.2,0.712681]
[1738192750284,3.17673,3147.9,3147.2,3.890091]
[1738192750484,3.17682,3147.8,3147.2,3.890091]
[1738192751120,3.17684,3147.8,3147.0,0.7717]
[1738192751272,3.17684,3147.8,3147.0,3.94932]
[1738192751273,3.17709,3147.6,3147.0,3.94932]
[1738192751783,3.17709,3147.6,3147.0,0.7717]
[1738192751991,3.17709,3147.6,3146.9,3.17771]
[1738192751992,3.45793,3147.5,3146.9,3.17771]
[1738192752189,0.2808,3147.5,3146.9,3.17771]
[1738192752443,3.803789,3147.5,3146.9,3.17765]
[1738192752715,3.17724,3147.4,3146.9,3.17765]
[1738192752928,3.17739,3147.3,3146.7,4.62319097]
[1738192753121,3.45796,3147.5,3146.7,4.62319097]
[1738192753789,3.17753,3147.1,3146.7,0.8247]
[1738192753992,3.17743,3147.2,3146.7,0.8247]
[1738192754329,3.17754,3147.1,3146.5,3.17812]
[1738192754903,3.17754,3147.1,3146.5,3.17806]
[1738192755108,3.1775,3147.2,3146.5,3.63873794]
[1738192755309,3.17735,3147.3,3146.5,3.63873794]
[1738192755758,3.17754,3147.1,3146.5,3.63873794]
[1738192755958,3.17735,3147.3,3146.7,3.17793]
[1738192756168,3.17745,3147.2,3146.6,3.17797]
[1738192757123,3.17752,3147.1,3146.5,3.63872794]
[1738192757865,3.17769,3147.0,3146.4,0.7946]
[1738192758066,6.1842,3148.0,3146.1,4.57899637]
[1738192758067,3.45872,3146.8,3146.1,4.57899637]
[1738192758271,3.17795,3146.7,3146.1,4.57899637]
[1738192758966,3.45826,3147.2,3146.3,3.17831]
[1738192759130,3.45826,3147.2,3146.1,2.17625501]
[1738192759131,3.17765,3147.0,3146.1,4.57897637]
[1738192759326,3.17782,3146.9,3146.2,3.17838]
[1738192759532,0.2808,3147.2,3146.1,0.7572]
[1738192759533,3.17818,3146.5,3146.1,0.7572]
[1738192759843,3.17818,3146.5,3145.9,3.17872]
[1738192761265,3.45898,3146.5,3145.9,3.17872]
[1738192762277,3.17796,3146.7,3146.1,3.17845]
[1738192762731,3.17796,3146.7,3145.9,3.891025]
[1738192762939,3.17819,3146.5,3145.9,3.17867]
[1738192763469,3.17819,3146.5,3145.8,0.7659]
[1738192763672,3.17842,3146.3,3145.8,0.7659]
[1738192763997,3.17858,3146.1,3145.5,3.94646]
[1738192764868,3.17842,3146.3,3145.5,3.94646]
[1738192765072,0.2808,3146.4,3145.7,3.17886]
[1738192765239,3.17839,3146.3,3145.7,3.17888]
[1738192766065,0.2808,3146.4,3145.5,3.94649]
[1738192766287,3.17864,3146.0,3145.5,3.94649]
[1738192766588,3.17843,3146.2,3145.7,3.17887]
[1738192767985,3.17843,3146.2,3145.5,3.94649]
[1738192768186,3.17843,3146.2,3145.5,3.94646]
[1738192768905,3.1788,3145.9,3145.3,3.17929]
[1738192769174,3.17924,3145.4,3144.9,3.17967]
[1738192769360,3.17924,3145.4,3144.7,0.792]
[1738192769546,3.17956,3145.1,3144.7,0.792]
[1738192769871,3.17925,3145.4,3144.7,0.792]
[1738192770046,3.17925,3145.4,3143.9,6.25586653]
[1738192770047,0.317925,3145.4,3144.5,3.18011]
[1738192770255,3.46042,3145.1,3144.4,0.792]
[1738192770452,3.17979,3144.9,3144.4,1.43612514]
[1738192770839,3.17979,3144.9,3144.4,4.61636514]
[1738192771042,3.17979,3144.9,3144.4,1.43612514]
[1738192771544,3.17979,3144.9,3144.4,0.792]
[1738192772272,0.664016,3144.9,3144.0,0.7714]
[1738192772575,3.18037,3144.3,3143.7,3.95236]
[1738192772877,3.18037,3144.3,3143.7,0.7714]
[1738192774373,3.18037,3144.3,3143.7,3.95235]
[1738192774871,3.0,3144.6,3144.0,3.18056]
[1738192775607,3.46096,3144.5,3144.0,3.18056]
[1738192775776,3.46096,3144.5,3143.8,3.18078]
[1738192776109,3.18037,3144.3,3143.7,3.95233]
[1738192776253,3.18037,3144.3,3143.7,0.7714]
[1738192776694,3.18037,3144.3,3143.7,3.95235]
[1738192776892,3.0,3144.6,3144.0,3.1806]
[1738192777480,6.1801,3144.6,3144.0,3.1806]
[1738192777800,3.18019,3144.5,3143.8,3.18085]
[1738192778393,3.18034,3144.4,3143.8,3.18085]
[1738192778897,3.18036,3144.3,3143.8,3.18085]
[1738192779098,3.2808,3144.9,3143.7,0.7714]
[1738192779296,3.18067,3144.0,3143.4,3.9974]
[1738192779995,3.18038,3144.3,3143.6,3.18097]
[1738192780163,3.498418,3144.3,3143.6,3.18097]
[1738192780983,3.18047,3144.2,3143.6,3.18097]
[1738192781768,6.678848,3144.3,3143.6,3.18105]
[1738192781968,3.18048,3144.2,3143.6,3.18105]
[1738192782505,3.46105,3144.4,3143.8,3.18084]
[1738192783219,3.18016,3144.5,3143.9,3.18074]
[1738192783374,3.18029,3144.4,3143.7,3.18089]
[1738192783576,3.18029,3144.4,3143.8,3.18084]
[1738192785733,0.2808,3144.4,3143.4,3.99738]
[1738192785908,3.18076,3143.9,3143.4,0.8162]
[1738192786228,3.18076,3143.9,3143.3,3.1813]
[1738192786816,3.18059,3144.1,3143.4,3.18118]
[1738192786992,3.46156,3143.9,3143.2,3.18137]
[1738192789039,0.3779639,3143.8,3143.3,3.18135]
[1738192789218,0.3779639,3143.8,3143.5,3.18115]
[1738192789397,0.2808,3143.9,3143.5,3.18115]
[1738192791830,0.2808,3143.9,3143.3,3.18132]
[1738192792034,0.2808,3143.9,3143.2,3.18147]
[1738192792202,0.2808,3143.9,3143.4,3.18119]
[1738192792405,0.926943,3143.9,3143.4,3.18119]
[1738192793226,4.107733,3143.9,3143.4,3.18119]
[1738192793423,0.926943,3143.9,3143.0,3.82765938]